{"text_format":"3","workbook":"xlsx","n_sheets":2,"sheets":["Inicio","Factura de servicio"],"not_rendered":{"images":1,"defined_names":1},"read":"whole","date_system":"1900"}

{"sheet":"Inicio","index":0,"n_rows":8,"n_cols":2,"rows_kept":8}
[null,"INFORMACIÓN SOBRE ESTA PLANTILLA"]
[null,"Use esta plantilla para crear una Factura de servicio."]
[null,"Rellene el número de factura, fecha, nombre de la empresa, dirección, eslogan y detalles de factura."]
[null,"Escriba la información en las tablas."]
[null,"El total se calcula automáticamente."]
[null,"Nota: "]
[null,"Se facilitan instrucciones adicionales en la columna A de la hoja de cálculo FACTURA DE SERVICIO. Este texto se ha ocultado a propósito. Para eliminar el texto, seleccione la columna A y, a continuación, ELIMINAR. Para mostrar el texto, seleccione la columna A y, a continuación, cambie el color de fuente."]
[null,"Para obtener más información sobre las tablas, presiona las teclas MAYÚS y F10 dentro de una tabla, selecciona la opción TABLA y, después, TEXTO ALTERNATIVO."]

{"sheet":"Factura de servicio","index":1,"n_rows":44,"n_cols":5,"rows_kept":44,"merged":[[0,1,0,2],[0,3,0,4],[2,1,2,3],[3,1,3,3],[4,1,4,2],[5,1,5,2],[6,1,6,2],[7,1,7,2],[41,1,41,2],[41,3,41,4],[43,1,43,4]]}
[null,"El marcador de posición del logotipo se encuentra en esta celda.",null,"FACTURA"]
[]
[null,"El nombre de su empresa"]
[null,"El lema de su empresa"]
[null,"Dirección",null,"N.º DE FACTURA","N.º"]
[null,"Ciudad y código postal",null,"FECHA ",{"$f":"TODAY()","v":"2022-04-29"}]
[null,"Teléfono Fax",null,"ID. DEL CLIENTE ","ID"]
[null,"Correo electrónico"]
[null,"PARA","Nombre"]
[null,null,"Nombre de la empresa"]
[null,null,"Dirección"]
[null,null,"Ciudad y código postal"]
[null,null,"Teléfono"]
[null,"VENDEDOR","TRABAJO","CONDICIONES DE PAGO","FECHA DE VENCIMIENTO"]
[{"$nulls":3},"Pago contra entrega"]
[]
[null,"CANTIDAD","DESCRIPCIÓN","PRECIO POR UNIDAD","TOTAL DE LA LÍNEA"]
[{"$nulls":4},{"$f":"IF(SUM(B18)>0,SUM(B18*'Factura de servicio'!$D18),\"\")","v":""}]
[{"$nulls":4},{"$f":"IF(SUM(B19)>0,SUM(B19*'Factura de servicio'!$D19),\"\")","v":""}]
[{"$nulls":4},{"$f":"IF(SUM(B20)>0,SUM(B20*'Factura de servicio'!$D20),\"\")","v":""}]
[{"$nulls":4},{"$f":"IF(SUM(B21)>0,SUM(B21*'Factura de servicio'!$D21),\"\")","v":""}]
[{"$nulls":4},{"$f":"IF(SUM(B22)>0,SUM(B22*'Factura de servicio'!$D22),\"\")","v":""}]
[{"$nulls":4},{"$f":"IF(SUM(B23)>0,SUM(B23*'Factura de servicio'!$D23),\"\")","v":""}]
[{"$nulls":4},{"$f":"IF(SUM(B24)>0,SUM(B24*'Factura de servicio'!$D24),\"\")","v":""}]
[{"$nulls":4},{"$f":"IF(SUM(B25)>0,SUM(B25*'Factura de servicio'!$D25),\"\")","v":""}]
[{"$nulls":4},{"$f":"IF(SUM(B26)>0,SUM(B26*'Factura de servicio'!$D26),\"\")","v":""}]
[{"$nulls":4},{"$f":"IF(SUM(B27)>0,SUM(B27*'Factura de servicio'!$D27),\"\")","v":""}]
[{"$nulls":4},{"$f":"IF(SUM(B28)>0,SUM(B28*'Factura de servicio'!$D28),\"\")","v":""}]
[{"$nulls":4},{"$f":"IF(SUM(B29)>0,SUM(B29*'Factura de servicio'!$D29),\"\")","v":""}]
[{"$nulls":4},{"$f":"IF(SUM(B30)>0,SUM(B30*'Factura de servicio'!$D30),\"\")","v":""}]
[{"$nulls":4},{"$f":"IF(SUM(B31)>0,SUM(B31*'Factura de servicio'!$D31),\"\")","v":""}]
[{"$nulls":4},{"$f":"IF(SUM(B32)>0,SUM(B32*'Factura de servicio'!$D32),\"\")","v":""}]
[{"$nulls":4},{"$f":"IF(SUM(B33)>0,SUM(B33*'Factura de servicio'!$D33),\"\")","v":""}]
[{"$nulls":4},{"$f":"IF(SUM(B34)>0,SUM(B34*'Factura de servicio'!$D34),\"\")","v":""}]
[{"$nulls":4},{"$f":"IF(SUM(B35)>0,SUM(B35*'Factura de servicio'!$D35),\"\")","v":""}]
[{"$nulls":4},{"$f":"IF(SUM(B36)>0,SUM(B36*'Factura de servicio'!$D36),\"\")","v":""}]
[{"$nulls":4},{"$f":"IF(SUM(B37)>0,SUM(B37*'Factura de servicio'!$D37),\"\")","v":""}]
[{"$nulls":3},"SUBTOTAL",{"$f":"IF(SUM(E18:E37)>0,SUM(E18:E37),\"\")","v":""}]
[{"$nulls":3},"IMPUESTO SOBRE LAS VENTAS"]
[{"$nulls":3},"TOTAL",{"$f":"IF(SUM(E38)>0,SUM((E38*E39)+E38),\"\")","v":""}]
[]
[null,"Todos los cheques se extenderán a nombre de",null,{"$f":"B3","v":"El nombre de su empresa"}]
[]
[null,"GRACIAS POR SU CONFIANZA"]